bitfinex/quotes_SOLUSD_20220307
["timestamp","ask_amount","ask_price","bid_price","bid_amount"]
[1646654148918,6.008,83.247,83.178,6.008]
[1646654149118,0.25,83.246,83.179,6.25]
[1646654149318,6.008,83.245,83.18,6.008]
[1646654149518,0.25,83.244,83.181,6.25]
[1646654150020,0.25,83.244,83.182,6.008]
[1646654150319,0.25,83.244,83.183,6.25]
[1646654150519,6.008,83.243,83.183,6.25]
[1646654150720,6.008,83.243,83.184,22.7067]
[1646654150919,6.008,83.243,83.185,6.25]
[1646654151719,6.008,83.243,83.193,0.17587976]
[1646654152722,0.25,83.244,83.194,6.008]
[1646654152922,0.25,83.249,83.195,6.25]
[1646654153124,0.25,83.249,83.196,6.008]
[1646654153326,0.25,83.249,83.197,6.25]
[1646654153624,0.25,83.249,83.198,6.007]
[1646654153826,0.25,83.249,83.199,6.25]
[1646654154226,0.25,83.249,83.199,0.25]
[1646654154828,0.25,83.249,83.198,6.257]
[1646654155027,0.25,83.249,83.199,6.0]
[1646654155226,0.25,83.249,83.2,0.25]
[1646654155828,6.007,83.248,83.2,0.25]
[1646654156027,0.25,83.247,83.2,0.25]
[1646654156227,6.007,83.246,83.193,0.17587976]
[1646654156430,0.25,83.245,83.193,0.17587976]
[1646654156626,6.008,83.244,83.193,0.17587976]
[1646654156827,0.25,83.243,83.193,0.17587976]
[1646654157828,0.25,83.248,83.193,0.17587976]
[1646654158028,6.008,83.247,83.193,0.17587976]
[1646654158228,0.25,83.246,83.193,0.17587976]
[1646654158429,6.008,83.245,83.193,0.17587976]
[1646654158629,0.25,83.244,83.193,0.17587976]
[1646654158830,0.25,83.244,83.194,6.008]
[1646654159031,0.25,83.244,83.195,0.25]
[1646654159328,0.25,83.244,83.196,6.008]
[1646654159527,0.25,83.244,83.197,0.25]
[1646654159727,0.25,83.248,83.197,0.25]
[1646654159929,6.007,83.247,83.197,0.25]
[1646654160128,0.25,83.246,83.197,0.25]
[1646654160531,0.25,83.246,83.198,6.008]
[1646654160728,0.25,83.246,83.199,6.25]
[1646654161129,6.008,83.249,83.199,6.25]
[1646654161331,23.2599,83.25,83.2,12.007]
[1646654161528,23.2599,83.25,83.201,0.25]
[1646654161732,23.2599,83.25,83.201,6.25]
[1646654162330,23.2599,83.25,83.202,6.0]
[1646654162531,23.2599,83.25,83.203,0.25]
[1646654162729,23.2599,83.25,83.201,0.25]
[1646654162929,41.2927,83.25,83.201,0.25]
[1646654163731,41.2927,83.25,83.193,6.257]
[1646654163931,41.2927,83.25,83.194,6.0]
[1646654164233,41.2927,83.25,83.195,6.258]
[1646654164430,6.007,83.249,83.195,0.25]
[1646654165232,6.007,83.249,83.186,0.25]
[1646654165433,6.007,83.249,83.187,6.008]
[1646654165634,6.007,83.249,83.188,6.25]
[1646654165833,6.007,83.249,83.189,6.008]
[1646654166032,6.007,83.249,83.19,6.25]
[1646654166736,6.007,83.249,83.191,6.0]
[1646654166933,6.007,83.249,83.192,0.25]
[1646654167132,6.007,83.249,83.19,0.25]
[1646654167534,6.007,83.249,83.19,6.25]
[1646654168938,6.007,83.249,83.19,127.75]
[1646654169140,23.2599,83.25,83.19,142.43]
[1646654169441,6.008,83.262,83.191,0.26705737]
[1646654169758,6.007,83.285,83.191,26.25112381]
[1646654169938,24.0969,83.284,83.192,153.73406644]
[1646654170138,18.0261,83.28,83.192,147.48406644]
[1646654170343,62.27873835,83.279,83.194,121.5]
[1646654170638,24.0969,83.284,83.201,121.5]
[1646654170838,6.006,83.283,83.21,136.18]
[1646654171038,6.006,83.283,83.22,14.68]
[1646654171239,6.006,83.283,83.221,30.1422]
[1646654171639,49.84560296,83.282,83.221,30.1422]
[1646654173741,24.9385,83.294,83.23,139.5192]
[1646654173942,24.9385,83.294,83.231,29.0437]
[1646654174742,51.86724229,83.293,83.231,29.0437]
[1646654175443,6.005,83.312,83.24,18.017]
[1646654175642,6.005,83.312,83.241,30.7142]
[1646654176445,52.35808064,83.311,83.241,30.7142]
[1646654177747,18.2694,83.31,83.241,30.7142]
[1646654178046,127.503,83.309,83.241,30.7142]
[1646654178246,0.25,83.308,83.241,30.7142]
[1646654178548,0.13483732,83.306,83.232,23.8992]
[1646654178753,0.13483732,83.304,83.233,6.0]
[1646654178943,6.003,83.303,83.233,6.0]
[1646654179144,0.25,83.302,83.233,6.0]
[1646654179343,18.0234,83.3,83.233,6.0]
[1646654179543,0.25,83.299,83.233,6.0]
[1646654179746,6.003,83.298,83.233,6.0]
[1646654179945,0.25,83.297,83.234,23.215]
[1646654180144,6.003,83.296,83.235,6.0]
[1646654180344,0.25,83.295,83.235,6.0]
[1646654180544,6.003,83.294,83.235,6.0]
[1646654180744,0.25,83.293,83.235,6.0]
[1646654181145,0.25,83.293,83.236,0.25]
[1646654181747,0.25,83.299,83.236,0.25]
[1646654181950,6.003,83.301,83.236,0.25]
[1646654182149,23.1633,83.302,83.236,0.25]
[1646654183150,23.1633,83.302,83.24,18.0174]
[1646654183349,23.1633,83.302,83.241,6.25]
[1646654184055,23.1633,83.302,83.241,0.25]
[1646654184253,23.1633,83.302,83.236,0.25]
[1646654184882,6.003,83.301,83.236,0.25]
[1646654185080,0.25,83.3,83.236,0.25]
[1646654185277,6.003,83.299,83.236,0.25]
[1646654185477,0.25,83.298,83.236,0.25]
[1646654185678,6.003,83.297,83.236,0.25]
[1646654185877,0.25,83.296,83.236,0.25]
[1646654186077,6.003,83.295,83.236,0.25]
[1646654186279,18.0239,83.29,83.236,0.25]
[1646654186478,6.005,83.289,83.236,0.25]
[1646654186677,29.3245,83.289,83.236,0.25]
[1646654186879,23.3195,83.289,83.236,0.25]
[1646654191588,23.3195,83.289,83.235,6.0]
[1646654191792,57.48552032,83.278,83.221,6.0]
[1646654191989,0.24172492,83.276,83.211,6.0]
[1646654192187,0.24172492,83.274,83.192,6.0]
[1646654192388,0.24172492,83.272,83.192,6.0]
[1646654192590,0.24172492,83.27,83.192,6.0]
[1646654192787,6.007,83.269,83.192,6.0]
[1646654192988,0.49172492,83.268,83.192,6.0]
[1646654193188,6.007,83.267,83.192,6.0]
[1646654193389,0.25,83.266,83.192,6.0]
[1646654193690,6.007,83.265,83.193,0.25]
[1646654193889,0.25,83.264,83.193,0.25]
[1646654194089,18.0306,83.26,83.193,0.25]
[1646654194391,0.25,83.259,83.193,0.25]
[1646654194589,6.68,83.259,83.193,0.25]
[1646654194789,6.68,83.259,83.192,6.0]
[1646654194992,127.507,83.258,83.192,6.0]
[1646654195194,18.0325,83.25,83.192,6.0]
[1646654195393,0.18166804,83.248,83.192,6.0]
[1646654195692,23.39176804,83.248,83.192,6.0]
[1646654195892,0.25,83.247,83.192,6.0]
[1646654196191,0.25,83.247,83.193,0.25]
[1646654196392,121.75,83.247,83.193,0.25]
[1646654196594,18.035,83.24,83.193,0.25]
[1646654196793,0.25,83.239,83.191,0.25]
[1646654197997,24.2209,83.247,83.191,0.25]
[1646654198195,6.008,83.247,83.191,0.25]
[1646654198395,23.2101,83.248,83.192,6.008]
[1646654198600,23.2101,83.248,83.193,6.25]
[1646654198797,23.2101,83.248,83.194,6.008]
[1646654198996,23.2101,83.248,83.195,6.25]
[1646654199196,23.2101,83.248,83.196,6.008]
[1646654199397,56.59688264,83.249,83.197,6.25]
[1646654199598,56.59688264,83.249,83.198,6.007]
[1646654199797,56.59688264,83.249,83.199,6.25]
[1646654199996,56.59688264,83.249,83.2,6.007]
[1646654200198,18.0281,83.27,83.201,6.25]
[1646654200400,6.257,83.269,83.202,29.1234]
[1646654200598,6.257,83.269,83.203,6.25]
[1646654201199,52.3158107,83.268,83.21,18.0268]
[1646654201398,6.256,83.267,83.211,6.25]
[1646654201899,0.25,83.267,83.211,6.25]
[1646654202698,0.25,83.267,83.212,6.006]
[1646654202901,0.25,83.267,83.213,6.25]
[1646654203099,0.25,83.267,83.214,6.006]
[1646654203298,0.25,83.267,83.215,6.25]
[1646654203899,0.25,83.267,83.215,0.25]
[1646654204098,0.25,83.267,83.216,6.006]
[1646654204298,0.25,83.267,83.217,6.25]
[1646654204498,0.25,83.267,83.218,6.006]
[1646654204698,0.25,83.267,83.219,6.25]
[1646654205299,0.25,83.267,83.22,6.0]
[1646654205501,0.25,83.267,83.221,0.25]
[1646654205701,0.25,83.267,83.219,0.25]
[1646654206498,18.1812,83.267,83.219,0.25]
[1646654206699,0.25,83.267,83.219,6.256]
[1646654206898,0.25,83.267,83.22,6.0]
[1646654207100,0.25,83.267,83.221,0.25]
[1646654207499,6.25,83.267,83.221,0.25]
[1646654208201,6.25,83.267,83.215,0.25]
[1646654210301,6.006,83.266,83.22,18.025]
[1646654210501,0.25,83.265,83.221,6.25]
[1646654211701,0.25,83.266,83.221,6.25]
[1646654211901,6.006,83.267,83.221,6.25]
[1646654212103,23.8528,83.272,83.23,18.0225]
[1646654212304,23.8528,83.272,83.231,6.25]
[1646654215305,23.8528,83.272,83.24,18.0202]
[1646654215607,6.005,83.309,83.242,0.1924214]
[1646654215809,6.003,83.315,83.242,0.1924214]
[1646654216205,6.003,83.333,83.242,0.1924214]
[1646654216404,58.79087414,83.332,83.242,0.1924214]
[1646654216606,18.0151,83.33,83.25,18.0181]
[1646654216804,18.0151,83.33,83.251,6.25]
[1646654216805,6.003,83.329,83.251,6.25]
[1646654217005,29.5954,83.329,83.251,28.804]
[1646654217206,0.25,83.328,83.251,28.804]
[1646654217406,6.003,83.327,83.251,28.804]
[1646654217809,6.003,83.327,83.26,18.0143]
[1646654218008,6.003,83.327,83.261,6.25]
[1646654219007,0.25,83.326,83.261,6.25]
[1646654219207,6.002,83.325,83.261,6.25]
[1646654219407,0.25,83.324,83.261,6.25]
[1646654219607,6.002,83.323,83.261,6.25]
[1646654221812,6.002,83.323,83.261,29.4229]
[1646654223417,0.25,83.324,83.261,29.4229]
[1646654223616,0.25,83.328,83.261,29.4229]
[1646654225919,0.25,83.328,83.261,37.1829]
[1646654226934,23.5924,83.329,83.261,37.1829]
[1646654227133,23.5924,83.329,83.261,29.4229]
[1646654229136,6.002,83.328,83.261,29.4229]
[1646654229736,0.25,83.327,83.261,29.4229]
[1646654229935,6.002,83.326,83.261,29.4229]
[1646654230137,0.25,83.325,83.261,29.4229]
[1646654230337,6.002,83.324,83.261,29.4229]
[1646654230538,121.5,83.319,83.261,6.0]
[1646654230739,121.5,83.317,83.221,6.0]
[1646654230942,121.5,83.315,83.214,52.7881]
[1646654231140,0.51495187,83.314,83.214,52.7881]
[1646654231338,6.003,83.313,83.214,52.7881]
[1646654231542,121.5,83.311,83.214,52.7881]
[1646654231738,0.26495187,83.309,83.22,18.0222]
[1646654231939,121.76495187,83.309,83.221,6.25]
[1646654232139,121.5,83.307,83.221,6.25]
[1646654232340,121.5,83.305,83.221,6.25]
[1646654232540,0.25,83.304,83.221,6.25]
[1646654232740,18.0216,83.3,83.221,6.25]
[1646654232940,6.51995187,83.299,83.215,6.0]
[1646654233240,30.65,83.299,83.215,6.0]
[1646654233844,30.65,83.299,83.22,18.0228]
[1646654234043,24.645,83.299,83.221,6.0]
[1646654234348,24.645,83.299,83.222,0.25]
[1646654234743,24.645,83.299,83.216,0.25]
[1646654234944,24.645,83.299,83.23,18.0203]
[1646654235145,24.645,83.299,83.231,29.8531]
[1646654235948,6.003,83.298,83.231,29.8531]
[1646654236146,0.25,83.297,83.231,29.8531]
[1646654236445,6.003,83.296,83.231,29.8531]
[1646654236647,0.25,83.295,83.231,29.8531]
[1646654236848,6.005,83.294,83.231,29.8531]
[1646654237046,0.25,83.293,83.231,29.8531]
[1646654237247,6.005,83.292,83.231,29.8531]
[1646654239950,0.25,83.293,83.231,29.8531]
[1646654240152,0.25,83.297,83.231,29.8531]
[1646654240351,6.003,83.296,83.231,29.8531]
[1646654240555,0.25,83.295,83.231,29.8531]
[1646654240751,6.005,83.294,83.231,29.8531]
[1646654240954,0.25,83.293,83.231,29.8531]
[1646654241553,121.5,83.289,83.182,68.28064656]
[1646654241753,0.25,83.293,83.187,22.973]
[1646654241754,121.5,83.287,83.187,22.973]
[1646654241953,121.5,83.285,83.187,22.973]
[1646654242254,0.36363121,83.282,83.187,22.973]
[1646654242456,121.5,83.279,83.187,22.973]
[1646654242654,18.0295,83.27,83.187,22.973]
[1646654242854,6.256,83.269,83.187,22.973]
[1646654243054,6.256,83.269,83.214,0.25]
[1646654244253,18.0303,83.26,83.214,0.25]
[1646654244454,6.256,83.259,83.187,22.973]
[1646654245453,6.256,83.259,83.188,121.5]
[1646654245656,6.256,83.259,83.2,18.0277]
[1646654245854,6.256,83.259,83.214,0.25]
[1646654246454,0.25,83.259,83.214,6.25]
[1646654246653,0.25,83.268,83.214,0.25]
[1646654246856,0.25,83.268,83.203,0.25]
[1646654247254,6.007,83.267,83.203,0.25]
[1646654247454,0.25,83.266,83.203,0.25]
[1646654247657,6.007,83.265,83.203,0.25]
[1646654247858,0.25,83.264,83.203,0.25]
[1646654248759,6.007,83.263,83.203,0.25]
[1646654248955,0.25,83.262,83.203,0.25]
[1646654249156,6.007,83.261,83.203,0.25]
[1646654249456,18.2805,83.26,83.203,0.25]
[1646654249656,6.007,83.259,83.202,0.25]
[1646654249956,0.25,83.258,83.202,0.25]
[1646654250156,6.007,83.257,83.202,0.25]
[1646654250358,0.25,83.256,83.202,0.25]
[1646654250561,48.12530443,83.254,83.202,0.25]
[1646654250758,0.25,83.253,83.202,0.25]
[1646654251559,0.25,83.253,83.205,0.18096332]
[1646654252362,6.257,83.253,83.205,0.18096332]
[1646654253459,18.0323,83.25,83.205,0.18096332]
[1646654253659,0.25,83.249,83.205,0.18096332]
[1646654254759,6.257,83.253,83.205,0.18096332]
[1646654255961,0.25,83.253,83.205,0.18096332]
[1646654256563,48.12530443,83.254,83.205,0.18096332]
[1646654261163,48.12530443,83.254,83.202,6.25]
[1646654272980,0.25,83.253,83.202,6.25]
[1646654273378,48.12530443,83.254,83.202,6.25]
[1646654273778,0.25,83.253,83.202,6.25]
[1646654274282,0.21782224,83.253,83.202,6.25]
[1646654274484,18.0324,83.25,83.2,100.0]
[1646654274681,6.32332953,83.249,83.2,100.0]
[1646654274896,39.87800565,83.249,83.2,100.0]
[1646654275096,0.31632953,83.247,83.201,6.0]
[1646654275297,0.31632953,83.245,83.201,6.0]
[1646654275496,18.035,83.24,83.201,6.0]
[1646654275697,18.035,83.24,83.202,0.25]
[1646654276299,0.25,83.239,83.202,0.25]
[1646654277402,0.25,83.247,83.202,0.25]
[1646654277601,6.007,83.246,83.202,0.25]
[1646654277800,0.25,83.245,83.202,0.25]
[1646654278001,6.007,83.244,83.202,0.25]
[1646654278202,0.25,83.243,83.202,0.25]
[1646654278399,6.007,83.242,83.202,0.25]
[1646654278599,0.25,83.241,83.202,0.25]
[1646654278800,6.008,83.24,83.202,0.25]
[1646654279001,0.25,83.239,83.202,0.25]
[1646654284603,121.5,83.246,83.202,0.25]
[1646654284805,127.757,83.245,83.202,0.25]
[1646654285605,18.035,83.24,83.202,0.25]
[1646654285808,0.25,83.239,83.202,0.25]
[1646654286214,6.008,83.238,83.202,0.25]
[1646654286406,0.25,83.237,83.202,0.25]
[1646654287608,0.25,83.238,83.202,0.25]
[1646654288410,0.25,83.238,83.202,0.22239757]
[1646654289512,6.008,83.237,83.202,0.22239757]
[1646654289711,0.25,83.236,83.202,0.22239757]
[1646654289918,6.008,83.235,83.202,0.22239757]
[1646654290114,0.25,83.234,83.2,100.0]
[1646654290315,0.25,83.236,83.201,0.25]
[1646654291215,0.25,83.237,83.201,0.25]
[1646654291417,6.008,83.236,83.201,0.25]
[1646654291616,0.25,83.235,83.201,0.25]
[1646654291917,1.62272651,83.256,83.201,6.25]
[1646654292117,24.6777,83.253,83.202,0.25445623]
[1646654293917,24.1777,83.253,83.202,0.25445623]
[1646654294117,24.1777,83.253,83.201,6.25]
[1646654295020,18.0281,83.27,83.201,6.25]
[1646654295223,6.007,83.269,83.21,18.0264]
[1646654295421,6.007,83.269,83.211,29.8336]
[1646654295621,24.0622,83.275,83.211,29.8336]
[1646654296123,6.006,83.281,83.211,151.3336]
[1646654296321,57.7205796,83.292,83.221,121.5]
[1646654296322,6.006,83.291,83.221,121.5]
[1646654296522,57.7205796,83.292,83.23,14.68]
[1646654296821,1.62272651,83.31,83.231,128.14930233]
[1646654297021,1.62272651,83.315,83.231,128.14930233]
[1646654297224,1.62272651,83.316,83.234,0.39930233]
[1646654297423,1.62272651,83.324,83.236,0.39930233]
[1646654297623,1.62272651,83.332,83.251,121.89930233]
[1646654297830,51.50908141,83.323,83.252,6.25]
[1646654298022,51.50908141,83.323,83.253,121.5]
[1646654298223,51.50908141,83.323,83.255,121.5]
[1646654298424,51.50908141,83.323,83.257,121.5]
[1646654298624,51.50908141,83.323,83.261,121.5]
[1646654298828,51.50908141,83.323,83.262,6.25]
[1646654299723,6.002,83.336,83.263,0.15803634]
[1646654299924,6.002,83.345,83.263,24.21503634]
[1646654300124,6.002,83.345,83.264,6.25]
[1646654300323,6.002,83.345,83.265,6.002]
[1646654300525,6.002,83.345,83.271,121.5]
[1646654300743,51.54441415,83.36,83.273,194.55]
[1646654300923,51.54441415,83.36,83.275,194.55]
[1646654301124,51.54441415,83.36,83.291,121.5]
[1646654301325,51.54441415,83.36,83.301,121.5]
[1646654301525,51.54441415,83.36,83.302,12.25]
[1646654302525,51.54441415,83.36,83.302,21.45]
[1646654303326,51.54441415,83.36,83.302,12.25]
[1646654303526,51.54441415,83.36,83.302,6.25]
[1646654303726,51.54441415,83.36,83.303,6.0]
[1646654303927,51.54441415,83.36,83.304,6.25]
[1646654304126,51.54441415,83.36,83.305,6.0]
[1646654304427,51.54441415,83.36,83.306,6.25]
[1646654305028,51.54441415,83.36,83.306,15.0]
[1646654305826,51.54441415,83.36,83.307,6.0]
[1646654306026,51.54441415,83.36,83.308,6.248]
[1646654306227,51.54441415,83.36,83.309,6.0]
[1646654306427,51.54441415,83.36,83.31,6.248]
[1646654306726,51.54441415,83.36,83.311,6.0]
[1646654306929,51.54441415,83.36,83.312,6.248]
[1646654307127,51.54441415,83.36,83.313,6.0]
[1646654307328,51.54441415,83.36,83.314,0.25]
[1646654308428,51.54441415,83.36,83.296,6.248]
[1646654308651,51.54441415,83.36,83.297,6.0]
[1646654308854,51.54441415,83.36,83.298,6.25]
[1646654309051,51.54441415,83.36,83.299,6.0]
[1646654309251,51.54441415,83.36,83.3,6.25]
[1646654309453,51.54441415,83.36,83.301,6.0]
[1646654309651,51.54441415,83.36,83.302,6.25]
[1646654309853,51.54441415,83.36,83.303,6.0]
[1646654310154,9.08613526,83.359,83.302,6.0]
[1646654310355,9.08613526,83.359,83.292,12.0]
[1646654310553,2.83613526,83.358,83.292,12.0]
[1646654310758,6.0,83.357,83.292,12.0]
[1646654311156,51.54441415,83.36,83.292,12.0]
[1646654311360,51.54441415,83.36,83.292,21.11]
[1646654311557,51.54441415,83.36,83.293,121.75]
[1646654311757,51.54441415,83.36,83.295,121.5]
[1646654311958,51.54441415,83.36,83.301,121.5]
[1646654312156,51.54441415,83.36,83.302,12.25]
[1646654314256,51.54441415,83.36,83.302,12.0]
[1646654314658,6.0,83.359,83.302,6.0]
[1646654314861,6.0,83.359,83.293,6.0]
[1646654315059,2.83613526,83.358,83.294,6.0]
[1646654315260,18.0117,83.35,83.294,6.0]
[1646654315659,6.0,83.349,83.293,6.0]
[1646654315863,6.0,83.349,83.274,6.0]
[1646654316062,23.0916,83.348,83.275,6.001]
[1646654316262,23.0916,83.348,83.276,6.25]
[1646654316459,23.0916,83.348,83.277,6.001]
[1646654316660,23.0916,83.348,83.278,6.25]
[1646654316860,23.0916,83.348,83.279,6.001]
[1646654317065,23.0916,83.348,83.28,6.25]
[1646654317261,23.0916,83.348,83.281,6.001]
[1646654317461,6.001,83.356,83.282,0.25]
[1646654317663,0.25,83.355,83.283,6.001]
[1646654317861,0.25,83.355,83.284,0.25]
[1646654318060,0.25,83.355,83.285,6.0]
[1646654318261,51.54441415,83.36,83.286,29.738]
[1646654318464,6.0,83.359,83.29,14.68]
[1646654318662,6.0,83.359,83.291,6.25]
[1646654319263,51.54441415,83.36,83.292,6.0]
[1646654319463,51.54441415,83.36,83.293,0.25]
[1646654319663,51.54441415,83.36,83.294,6.0]
[1646654319864,51.54441415,83.36,83.295,0.25]
[1646654320062,51.54441415,83.36,83.296,6.0]
[1646654320264,51.54441415,83.36,83.297,0.25]
[1646654320465,51.54441415,83.36,83.298,6.0]
[1646654320664,51.54441415,83.36,83.299,6.25]
[1646654320862,51.54441415,83.36,83.3,6.0]
[1646654321067,51.54441415,83.36,83.301,6.25]
[1646654321264,51.54441415,83.36,83.302,6.0]
[1646654321463,51.54441415,83.36,83.303,0.25]
[1646654321662,6.0,83.359,83.303,0.25]
[1646654322062,8.83613526,83.359,83.303,0.25]
[1646654322662,22.9047,83.358,83.288,0.25]
[1646654322862,6.0,83.357,83.289,6.0]
[1646654323063,6.0,83.357,83.29,0.25]
[1646654323263,6.0,83.357,83.291,6.0]
[1646654323462,6.0,83.357,83.292,0.25]
[1646654323666,6.0,83.357,83.293,6.0]
[1646654323863,6.0,83.357,83.294,0.25]
[1646654324064,3.08613526,83.356,83.294,0.25]
[1646654324263,6.0,83.355,83.294,0.25]
[1646654324463,0.25,83.354,83.294,0.25]
[1646654324663,6.0,83.353,83.293,6.0]
[1646654326064,6.0,83.353,83.294,0.25]
[1646654326964,23.7644,83.353,83.294,0.25]
[1646654327564,1.62272651,83.352,83.294,0.25]
[1646654328165,18.0109,83.35,83.294,0.25]
[1646654328366,1.62272651,83.352,83.294,0.25]
[1646654328870,1.62272651,83.347,83.294,0.25]
[1646654329166,6.25,83.346,83.294,0.25]
[1646654329766,1.62272651,83.353,83.294,6.25]
[1646654329965,1.62272651,83.352,83.294,6.25]
[1646654330165,1.62272651,83.354,83.294,6.25]
[1646654330365,1.87272651,83.353,83.294,6.25]
[1646654331167,6.0,83.352,83.294,6.25]
[1646654331371,6.0,83.354,83.294,6.25]
[1646654331567,6.0,83.354,83.294,15.15]
[1646654331768,6.0,83.355,83.294,15.15]
[1646654331968,7.62272651,83.355,83.294,15.15]
[1646654332169,6.0,83.355,83.294,6.25]
[1646654332370,18.011,83.35,83.293,6.0]
[1646654332569,49.39530946,83.376,83.251,24.3379]
[1646654332570,1.62272651,83.341,83.251,24.3379]
[1646654332870,2.06405096,83.339,83.252,46.2952]
[1646654333070,0.44132445,83.337,83.252,46.2952]
[1646654333270,55.78590766,83.335,83.252,46.2952]
[1646654333470,0.44132445,83.333,83.252,46.2952]
[1646654333770,0.44132445,83.331,83.253,6.0]
[1646654333973,1.62272651,83.328,83.253,6.0]
[1646654334170,6.69432445,83.327,83.253,6.0]
[1646654334372,6.69432445,83.327,83.254,0.25]
[1646654334571,22.7478,83.326,83.254,0.25]
[1646654334792,6.253,83.325,83.254,0.25]
[1646654335473,0.44132445,83.324,83.254,0.25]
[1646654335672,18.0176,83.32,83.254,0.25]
[1646654335873,0.25,83.319,83.254,0.25]
[1646654337072,0.25,83.324,83.254,0.25]
[1646654337276,6.003,83.323,83.254,0.25]
[1646654337473,0.25,83.322,83.254,0.25]
[1646654337674,6.003,83.321,83.254,0.25]
[1646654337873,0.25,83.32,83.254,0.25]
[1646654339079,0.25,83.324,83.254,0.25]
[1646654339278,18.0176,83.32,83.254,0.25]
[1646654339480,0.25,83.319,83.254,0.25]
[1646654340577,6.003,83.318,83.254,0.25]
[1646654340778,0.25,83.317,83.254,0.25]
[1646654341779,0.25,83.324,83.254,0.25]
[1646654341982,6.003,83.323,83.254,0.25]
[1646654342179,0.25,83.322,83.254,0.25]
[1646654342399,6.003,83.321,83.254,0.25]
[1646654342599,0.25,83.32,83.254,0.25]
[1646654342798,6.003,83.319,83.254,0.25]
[1646654343000,0.25,83.318,83.254,0.25]
[1646654343200,121.5,83.316,83.254,0.25]
[1646654343400,0.3251196,83.314,83.254,0.25]
[1646654343600,0.25,83.315,83.254,0.25]
[1646654343601,0.3251196,83.312,83.254,0.25]
[1646654343802,53.58430457,83.31,83.254,0.25]
[1646654344104,0.3251196,83.308,83.254,0.25]
[1646654344301,6.003,83.307,83.254,0.25]
[1646654344602,0.3251196,83.305,83.254,0.25]
[1646654345501,0.25,83.306,83.254,0.25]
[1646654345703,0.25,83.309,83.254,0.25]
[1646654345902,6.003,83.308,83.254,0.25]
[1646654346102,18.0214,83.3,83.254,0.25]
[1646654347002,6.003,83.308,83.254,0.25]
[1646654347203,0.25,83.307,83.254,0.25]
[1646654347406,6.003,83.306,83.254,0.25]
[1646654347603,0.25,83.305,83.254,0.25]
[1646654347804,6.003,83.304,83.254,0.25]
[1646654348004,0.25,83.303,83.254,0.25]
[1646654348204,6.003,83.302,83.254,0.25]
[1646654349505,0.25,83.303,83.254,0.25]
[1646654349705,0.25,83.308,83.254,0.25]